bitfinex/quotes_ETHUSD_20250626
["timestamp","ask_amount","ask_price","bid_price","bid_amount"]
[1750973529546,4.12226208,2425.9,2425.7,0.002]
[1750973529905,4.12207384,2426.0,2425.7,0.002]
[1750973530133,4.12218822,2425.9,2425.7,0.002]
[1750973530430,4.12184163,2426.1,2425.7,0.002]
[1750973530431,4.12208923,2426.0,2425.7,0.002]
[1750973530831,4.12186111,2426.1,2425.7,0.002]
[1750973530832,4.12226008,2425.9,2425.7,0.002]
[1750973531034,4.58928847,2426.0,2425.7,0.002]
[1750973531246,0.7968,2426.3,2425.7,0.002]
[1750973531409,4.91771154,2426.7,2425.8,2.576]
[1750973531607,5.08677222,2426.6,2425.8,2.576]
[1750973531809,0.96569441,2426.5,2425.8,2.576]
[1750973532152,0.96569441,2426.5,2425.9,0.2578]
[1750973532153,4.12129244,2426.5,2425.9,0.2578]
[1750973532447,0.7968,2426.7,2425.8,0.756]
[1750973532448,4.12172041,2426.2,2425.8,0.756]
[1750973533211,4.12184845,2426.1,2425.7,0.002]
[1750973533613,0.55,2426.3,2425.7,0.002]
[1750973533831,4.12235138,2425.8,2425.7,0.002]
[1750973534452,4.94679437,2425.8,2425.7,0.002]
[1750973535528,4.12222468,2425.9,2425.7,0.002]
[1750973535723,4.12231568,2425.9,2425.7,0.002]
[1750973535926,4.12235138,2425.8,2425.7,0.002]
[1750973537233,4.92505138,2425.8,2425.7,0.002]
[1750973537454,6.51787741,2425.8,2425.7,0.002]
[1750973538343,7.06787741,2425.8,2425.7,0.002]
[1750973539631,17.06787741,2425.8,2425.7,0.002]
[1750973543180,11.59282603,2425.8,2425.7,0.002]
[1750973543463,6.872,2426.0,2425.7,0.002]
[1750973543758,10.0,2425.9,2425.7,0.002]
[1750973543966,14.12219112,2425.9,2425.7,0.002]
[1750973544147,14.12219112,2425.9,2425.3,0.77674875]
[1750973544330,10.0,2425.9,2425.3,0.77674875]
[1750973544532,10.0,2426.0,2425.3,1.03642363]
[1750973544866,14.12202008,2426.0,2425.3,1.03642363]
[1750973546749,10.0,2426.0,2425.3,1.03642363]
[1750973546954,14.12213325,2426.0,2425.3,1.03642363]
[1750973547132,10.0,2426.0,2425.3,1.03642363]
[1750973547334,14.12201898,2426.0,2425.4,0.28564236]
[1750973547867,10.0,2426.0,2425.4,0.28564236]
[1750973548068,14.12201579,2426.0,2425.4,0.28564236]
[1750973548240,4.12229963,2425.9,2425.4,0.28564236]
[1750973548441,14.12209524,2426.0,2425.4,0.28564236]
[1750973549743,4.12222517,2425.9,2425.4,0.28564236]
[1750973550142,14.12209971,2426.0,2425.4,0.28564236]
[1750973550838,4.12225635,2425.9,2425.4,0.28564236]
[1750973551875,14.12209462,2426.0,2425.4,0.28564236]
[1750973553745,4.1221979,2425.9,2425.4,0.28564236]
[1750973553961,4.1221979,2425.9,2425.3,0.77674875]
[1750973555641,4.12242533,2425.8,2425.3,0.77674875]
[1750973556255,4.12227933,2425.9,2425.3,0.77674875]
[1750973556678,4.12236435,2425.8,2425.3,0.77674875]
[1750973556850,4.12218145,2425.9,2424.8,0.7959]
[1750973557075,4.12363106,2425.1,2424.7,0.002]
[1750973557278,4.12368773,2425.1,2424.7,0.002]
[1750973558391,4.1236213,2425.1,2424.7,0.002]
[1750973558727,0.8069,2425.0,2424.7,0.002]
[1750973559210,4.12390646,2424.9,2424.7,0.002]
[1750973559765,0.8069,2425.0,2424.7,0.002]
[1750973560596,4.12405146,2424.8,2424.7,0.002]
[1750973561666,4.93068,2425.0,2424.7,0.002]
[1750973561900,4.61695178,2424.9,2424.7,0.002]
[1750973562099,4.61696299,2424.9,2424.7,0.002]
[1750973562327,0.493068,2424.9,2424.7,0.002]
[1750973563272,4.61699706,2424.9,2424.7,0.002]
[1750973563911,0.493068,2424.9,2424.7,0.002]
[1750973567217,14.12337453,2425.2,2424.7,0.002]
[1750973567515,10.0,2425.2,2424.7,0.002]
[1750973567919,14.12351857,2425.2,2424.7,0.002]
[1750973568122,10.0,2425.2,2424.7,0.002]
[1750973568788,14.12341301,2425.2,2424.7,0.002]
[1750973568983,6.89298353,2425.1,2424.7,0.002]
[1750973569823,6.89300381,2425.1,2424.7,0.002]
[1750973570192,4.12372737,2425.0,2424.7,0.002]
[1750973570746,15.45975146,2424.8,2424.7,0.002]
[1750973570887,15.45975146,2424.8,2424.4,0.002]
[1750973570888,4.12456176,2424.5,2424.4,0.002]
[1750973571093,22.31826176,2424.5,2424.4,0.002]
[1750973575240,15.46026176,2424.5,2424.4,0.002]
[1750973575410,24.14126176,2424.5,2424.4,0.002]
[1750973578335,28.48126176,2424.5,2424.4,0.002]
[1750973578553,25.04383751,2424.5,2424.4,0.002]
[1750973579832,35.35383751,2424.5,2424.4,0.002]
[1750973580541,34.79783751,2424.5,2424.4,0.002]
[1750973580859,35.34783751,2424.5,2424.4,0.002]
[1750973583160,43.21783751,2424.5,2424.4,0.002]
[1750973586253,43.52735729,2424.5,2424.4,0.002]
[1750973586824,43.51935729,2424.5,2424.4,0.002]
[1750973587462,33.99283751,2424.5,2424.4,0.002]
[1750973587646,42.65983751,2424.5,2424.4,0.002]
[1750973587852,43.20983751,2424.5,2424.4,0.002]
[1750973588360,34.54283751,2424.5,2424.4,0.002]
[1750973588661,43.21083751,2424.5,2424.4,0.002]
[1750973589668,47.53983751,2424.5,2424.4,0.002]
[1750973590231,48.50040818,2424.5,2424.4,0.002]
[1750973590653,4.67541254,2424.0,2423.9,0.002]
[1750973590840,22.95005379,2424.0,2423.9,0.002]
[1750973591057,32.95005379,2424.0,2423.9,0.002]
[1750973592045,4.34,2423.6,2423.4,0.002]
[1750973592267,32.04736366,2423.5,2423.4,0.002]
[1750973592445,35.32747264,2423.5,2423.4,0.002]
[1750973593462,26.65847264,2423.5,2423.4,0.002]
[1750973593772,34.49437264,2423.5,2423.4,0.002]
[1750973593969,31.21426366,2423.5,2423.4,0.002]
[1750973596279,6.858,2423.5,2423.4,0.8096]
[1750973598169,6.858,2423.5,2423.4,0.002]
[1750973598480,10.98426366,2423.5,2423.4,0.002]
[1750973598690,21.53426366,2423.5,2423.4,0.002]
[1750973598854,24.28149985,2423.5,2423.4,0.002]
[1750973599678,29.39489985,2423.5,2423.4,0.002]
[1750973599883,25.05489985,2423.5,2423.4,0.002]
[1750973600484,22.53689985,2423.5,2423.4,0.002]
[1750973600683,31.21989985,2423.5,2423.4,0.002]
[1750973601459,32.1808837,2423.5,2423.4,0.002]
[1750973601659,32.1908837,2423.5,2423.4,0.002]
[1750973602094,26.88989985,2423.5,2423.4,0.002]
[1750973602254,40.63352962,2423.5,2423.4,0.002]
[1750973602458,15.42861514,2423.0,2422.9,0.218904]
[1750973602662,25.24289506,2423.0,2422.9,0.218904]
[1750973603490,16.53789506,2423.0,2422.9,0.218904]
[1750973603691,23.38411514,2423.0,2422.9,0.218904]
[1750973609375,23.38411514,2423.0,2421.2,10.0]
[1750973609376,0.55,2422.1,2420.5,0.216904]
[1750973609576,14.13047534,2421.1,2420.6,0.8159]
[1750973609776,4.13082974,2420.9,2420.6,0.8159]
[1750973609978,7.045,2420.8,2420.6,0.8159]
[1750973611197,10.0,2421.1,2420.6,0.8159]
[1750973611367,17.053,2421.0,2420.6,0.8159]
[1750973612895,21.18363372,2421.0,2420.6,0.8159]
[1750973613699,4.12986108,2421.4,2420.6,0.8159]
[1750973613870,7.056,2421.3,2420.6,0.8159]
[1750973614071,7.059,2421.2,2420.6,0.8159]
[1750973615394,7.061,2421.1,2420.6,0.8159]
[1750973615798,10.0,2421.3,2420.6,0.8159]
[1750973615973,7.061,2421.1,2420.6,0.8159]
[1750973616297,7.058,2421.6,2420.7,0.7749]
[1750973616609,7.058,2421.6,2420.9,0.7749]
[1750973617101,12.225,2422.0,2420.8,1.29185298]
[1750973617102,7.072,2421.8,2421.1,0.7822]
[1750973617306,10.317,2422.0,2421.3,0.7822]
[1750973617307,7.07,2422.0,2421.3,0.7822]
[1750973617505,11.19887077,2422.0,2421.3,0.7822]
[1750973617667,4.12984224,2421.4,2421.3,0.7822]
[1750973617870,4.13012285,2421.3,2420.6,0.8296]
[1750973618510,11.20584224,2421.4,2420.6,0.8296]
[1750973618511,4.1303109,2421.2,2420.6,0.8296]
[1750973618996,11.20639627,2421.1,2420.6,0.8296]
[1750973619188,7.076,2421.1,2420.6,0.8296]
[1750973619969,12.1079823,2421.1,2420.6,0.8296]
[1750973620704,7.97754125,2421.1,2420.6,0.8296]
[1750973621375,12.10795246,2421.1,2420.6,0.8296]
[1750973621808,7.97754125,2421.1,2420.6,0.8296]
[1750973622509,7.076,2421.1,2420.6,0.8296]
[1750973622901,4.13053115,2421.0,2420.6,0.8296]
[1750973623096,11.20637226,2421.1,2420.6,0.8296]
[1750973623616,7.076,2421.1,2420.5,0.216904]
[1750973623825,14.94120713,2420.6,2420.5,0.216904]
[1750973623987,21.19720713,2420.6,2420.5,0.216904]
[1750973625489,22.54670713,2420.6,2420.5,0.216904]
[1750973629298,22.54670713,2420.6,2418.8,0.2022235]
[1750973629299,0.7623,2418.9,2416.6,0.7889]
[1750973629529,14.89777826,2418.1,2416.6,0.005]
[1750973629694,25.62555609,2418.1,2417.1,0.7949]
[1750973630039,26.17555609,2418.1,2417.1,0.7949]
[1750973630420,26.17555609,2418.1,2416.6,0.005]
[1750973630931,0.55,2416.4,2414.3,0.7949]
[1750973631090,0.55,2416.4,2413.8,0.32545942]
[1750973631091,10.0,2414.4,2413.8,0.32545942]
[1750973631408,8.389,2414.3,2413.8,0.32545942]
[1750973631611,7.406,2414.2,2413.8,0.32545942]
[1750973631799,0.55,2414.7,2413.8,0.32545942]
[1750973631800,10.0,2414.7,2413.8,0.32545942]
[1750973632007,0.55,2415.3,2413.9,3.7083]
[1750973632210,4.94319105,2416.0,2413.9,0.7823]
[1750973632211,0.8041,2416.0,2413.9,0.7823]
[1750973632411,10.0,2416.2,2414.2,9.78438954]
[1750973632627,4.13978254,2415.6,2414.6,0.7823]
[1750973632796,7.466,2416.1,2414.6,0.7823]
[1750973632797,10.0,2416.0,2414.6,0.7823]
[1750973633002,0.55,2415.9,2414.6,0.7823]
[1750973633197,10.4689084,2415.8,2414.6,0.7823]
[1750973633398,0.8041,2415.6,2414.2,0.7823]
[1750973633645,12.9751,2415.6,2414.2,0.7823]
[1750973633919,10.55,2415.5,2414.0,0.7823]
[1750973634130,10.0,2415.3,2414.2,0.0290144]
[1750973634316,0.55,2415.0,2414.2,0.0290144]
[1750973634522,14.14113119,2414.8,2414.2,0.0290144]
[1750973634700,0.55,2414.7,2414.2,0.0290144]
[1750973635031,10.0,2414.8,2414.2,0.0290144]
[1750973635412,1.4140101,2415.2,2414.2,0.0290144]
[1750973635734,2.259,2415.4,2414.2,0.0290144]
[1750973635735,10.0,2415.0,2414.2,0.0290144]
[1750973635913,7.595,2415.1,2414.2,0.0290144]
[1750973636108,0.4689084,2415.8,2414.5,0.55]
[1750973636309,7.598,2416.0,2414.7,0.8308]
[1750973636498,0.31345461,2417.2,2414.2,11.11531219]
[1750973636499,7.599,2416.6,2415.0,4.97155924]
[1750973636697,7.599,2416.6,2414.9,10.0]
[1750973636698,8.3589,2416.5,2415.1,4.30715592]
[1750973636919,8.3589,2416.5,2415.4,4.1400219]
[1750973637124,8.3589,2416.5,2415.5,0.7673]
[1750973637321,3.0398,2416.9,2415.6,0.55]
[1750973637322,2.26,2416.9,2415.6,0.55]
[1750973637533,0.8305,2417.3,2415.7,2.26]
[1750973637837,7.6,2417.2,2415.8,0.7673]
[1750973638006,7.6,2417.2,2415.9,0.55]
[1750973638205,8.586,2417.2,2416.0,3.39173]
[1750973638436,8.586,2417.2,2416.1,10.0]
[1750973638638,0.986,2417.2,2416.2,0.7673]
[1750973638845,7.595,2417.4,2416.2,0.7673]
[1750973639043,1.66921553,2417.8,2416.2,0.7673]
[1750973639343,9.26321553,2417.8,2416.7,0.7597]
[1750973639549,7.594,2417.8,2416.7,7.15756496]
[1750973639733,7.594,2417.8,2416.8,0.7157565]
[1750973640229,7.59,2418.1,2416.8,0.7157565]
[1750973640434,4.1359427,2417.9,2416.7,0.7597]
[1750973640634,4.13622669,2417.7,2416.7,2.26]
[1750973640825,2.26,2417.7,2416.0,1.13173]
[1750973641022,4.13698154,2417.3,2415.9,2.26]
[1750973641225,4.13650465,2417.5,2416.0,2.0]
[1750973641226,11.7247892,2417.4,2416.0,2.0]
[1750973641428,11.7247892,2417.4,2416.1,10.0]
[1750973641738,10.0,2417.6,2416.3,19.97751]
[1750973641936,1.41362819,2417.5,2416.4,12.41161346]
[1750973642135,1.41362819,2417.5,2415.7,15.2258207]
[1750973642136,7.585,2418.0,2416.6,4.13804518]
[1750973642442,7.585,2418.0,2416.7,6.39779855]
[1750973642618,7.585,2418.0,2416.7,2.26]
[1750973642819,4.13496673,2418.4,2416.7,2.26]
[1750973642820,10.0,2418.4,2416.7,2.26]
[1750973643014,4.13561618,2418.1,2416.7,2.26]
[1750973643219,4.13561618,2418.1,2416.8,4.77737209]
[1750973643220,1.82708441,2418.1,2416.8,4.77737209]
[1750973643415,22.05280921,2418.5,2416.9,6.39741194]
[1750973643651,17.918,2418.5,2417.0,14.65763364]
[1750973643852,17.918,2418.5,2417.1,4.13703187]
[1750973644026,17.918,2418.5,2417.2,10.0]
[1750973644349,2.4312651,2418.4,2417.3,11.0]
[1750973644541,0.53,2417.9,2417.3,11.0]
[1750973644944,0.53,2417.9,2417.3,1.0]
[1750973645242,0.53,2417.9,2417.3,11.0]
[1750973645438,0.53,2417.9,2417.3,1.0]
[1750973645952,0.53,2417.9,2417.4,0.5137008]
[1750973646632,0.53,2417.9,2417.5,2.7804]
[1750973647652,0.53,2417.9,2417.6,8.332489]
[1750973647836,0.53,2417.9,2417.6,7.728489]
[1750973648023,0.53,2417.9,2417.8,10.0]
[1750973648225,0.53,2417.9,2417.8,2.3932489]
[1750973648432,0.53,2417.9,2417.8,0.5204]
[1750973650951,0.53,2417.9,2416.8,4.13761646]
[1750973650952,4.66594057,2417.9,2417.2,0.5204]
[1750973651152,0.53,2417.9,2417.3,2.26]
[1750973651376,4.66584835,2417.9,2417.3,2.26]
[1750973651748,4.66591366,2417.9,2417.3,2.26]
[1750973652577,4.66587757,2417.9,2417.3,2.26]
[1750973652782,5.54606304,2417.9,2417.3,2.26]
[1750973652946,0.53,2417.9,2417.3,2.26]
[1750973653274,4.66591564,2417.9,2417.3,2.26]
[1750973653483,0.53,2417.9,2417.3,2.26]
[1750973653779,4.66593497,2417.9,2417.3,2.26]
[1750973653945,0.53,2417.9,2417.3,2.26]
[1750973655440,0.55,2417.8,2416.7,0.5204]
[1750973655679,10.0,2417.6,2416.2,0.5204]
[1750973655844,4.13754452,2416.9,2416.2,0.5204]
[1750973656584,10.8277,2416.8,2415.8,0.002]
[1750973656793,4.13868464,2416.3,2415.8,0.002]
[1750973656954,4.13924417,2415.9,2415.8,0.002]
[1750973657140,4.89284417,2415.9,2415.8,0.002]
[1750973657344,5.79603795,2415.9,2415.8,0.002]
[1750973658276,16.34603795,2415.9,2415.8,0.002]
[1750973658647,15.79603795,2415.9,2415.8,0.002]
[1750973658877,23.36503795,2415.9,2415.8,0.002]
[1750973659441,7.569,2415.9,2415.8,0.002]
[1750973659673,2.26,2416.8,2415.8,0.002]
[1750973659874,4.13787396,2416.7,2415.8,0.002]
[1750973660077,4.13924417,2415.9,2415.8,0.002]
[1750973660245,0.7841,2417.1,2415.8,0.002]
[1750973660446,4.14010101,2415.4,2415.1,0.002]
[1750973660688,24.59410101,2415.4,2415.1,0.002]
[1750973660887,5.47454385,2415.2,2415.1,0.002]
[1750973661187,5.47454385,2415.2,2414.6,0.0290144]
[1750973661188,4.69130119,2414.7,2414.6,0.0290144]
[1750973661343,25.89713131,2414.7,2414.6,0.0290144]
[1750973661803,25.89713131,2414.7,2413.8,0.32545942]
[1750973661804,4.14267368,2413.9,2413.8,0.32545942]
[1750973662088,25.44037368,2413.9,2413.8,0.32545942]
[1750973662277,25.44037368,2413.9,2411.9,2.261]
[1750973662278,4.14439912,2412.9,2411.9,0.5584]
[1750973662483,0.55,2411.5,2407.9,2.30791204]
[1750973662651,4.15403148,2407.3,2406.8,13.05073316]
[1750973662846,4.15403148,2407.3,2407.2,0.67179963]
[1750973662847,13.71320525,2407.3,2407.2,0.67179963]
[1750973663067,10.85575375,2407.3,2404.8,22.60089403]
[1750973663346,10.85575375,2407.3,2404.3,2.32190732]
[1750973663347,10.85575375,2407.3,2404.3,1.07467532]
[1750973663348,1.18803666,2405.5,2404.3,1.07467532]
[1750973663560,3.21695974,2406.1,2404.3,1.07467532]
[1750973663561,1.18803666,2405.0,2404.3,1.07467532]
[1750973663768,1.18803666,2405.0,2403.5,0.32974178]
[1750973663769,3.21695974,2404.6,2403.5,0.32974178]
[1750973664063,2.75206944,2404.0,2401.9,1.074675]
[1750973664265,2.75206944,2404.0,2401.3,1.12755102]
[1750973664266,4.93423802,2402.9,2401.3,1.12755102]
[1750973664463,0.7726,2402.9,2401.2,0.3018588]
[1750973664665,4.16417634,2401.5,2400.8,0.21123741]
[1750973664929,30.5074,2402.6,2400.8,0.6363443]
[1750973664930,12.487,2401.4,2400.8,0.6363443]
[1750973665210,1.44101974,2401.3,2400.8,0.6363443]
[1750973665364,4.16510475,2400.9,2400.0,0.124672]
[1750973665562,0.93361974,2401.2,2398.5,0.3783337]
[1750973665563,9.907,2400.8,2398.5,0.3783337]
[1750973665814,9.907,2400.8,2398.4,1.18042672]
[1750973665815,10.0,2400.2,2398.4,1.18042672]
[1750973666115,10.0,2400.2,2396.9,0.02]
[1750973666116,4.16706748,2399.8,2397.4,4.17108023]
[1750973666413,0.56905833,2398.9,2398.1,8.406201]
[1750973666572,2.37011111,2398.6,2396.9,0.02]
[1750973666775,0.91220174,2398.5,2396.9,0.02]
[1750973666973,1.57261111,2399.7,2398.0,3.703982]
[1750973667292,4.02119967,2400.5,2397.1,10.369]
[1750973667293,3.03911322,2400.9,2399.7,0.7762]
[1750973667506,0.30391132,2400.9,2398.5,10.0]
[1750973667672,10.33381016,2402.5,2398.1,4.16990478]
[1750973667673,4.16596397,2400.5,2398.1,4.16990478]
[1750973667878,11.232,2400.6,2397.9,0.17778521]
[1750973668076,38.192103,2401.0,2398.0,4.406541]
[1750973668419,4.16224788,2402.6,2398.7,0.5]
[1750973668420,10.0,2401.5,2398.7,0.5]
[1750973668584,0.8285,2402.2,2397.9,0.71509709]
[1750973668585,0.5,2398.3,2397.9,1.74157576]
[1750973668785,0.5,2399.2,2397.9,0.17778521]
[1750973668982,4.16589543,2400.5,2397.9,0.17778521]
[1750973669183,4.66656127,2400.1,2397.9,0.17778521]
[1750973669402,0.5,2400.1,2397.9,0.17778521]
[1750973669590,0.56552565,2401.4,2397.9,0.17778521]
[1750973669591,0.5,2401.0,2398.7,4.16884813]
[1750973669901,3.52,2402.4,2398.7,4.16884813]
[1750973669902,0.5,2402.0,2398.9,25.76425]
[1750973670088,0.5,2401.9,2399.3,25.76425]
[1750973670277,0.5,2402.3,2400.1,10.0]
[1750973670611,0.5,2404.1,2402.5,0.7828]
[1750973670815,0.7869,2405.4,2402.5,0.7828]
[1750973670816,0.5,2405.1,2402.6,25.76425]
[1750973670975,12.71853558,2405.7,2403.2,10.0]
[1750973671173,12.71853558,2405.7,2402.7,10.0]
[1750973671174,12.71853558,2405.7,2403.5,10.7593]
[1750973671425,12.71853558,2405.7,2403.9,10.0]
[1750973671578,10.33381016,2407.1,2404.6,10.0]
[1750973671779,23.84725421,2407.2,2404.6,10.0]
[1750973671780,23.84725421,2407.2,2405.6,10.0]
[1750973672004,23.84725421,2407.2,2406.0,10.0]
[1750973672205,28.00159177,2407.2,2405.8,0.7518]
[1750973672393,0.5,2406.8,2405.8,0.7518]
[1750973672718,4.1576584,2405.2,2405.1,1.247281]
[1750973672878,4.15852289,2404.7,2402.7,0.7706]
[1750973673077,0.5,2403.5,2402.2,1.248245]
[1750973673306,10.0,2404.0,2402.2,1.248245]
[1750973673307,4.16094536,2403.3,2402.2,1.248245]
[1750973673521,10.0,2404.0,2402.2,1.248245]
[1750973673522,0.5,2403.6,2402.2,1.248245]
[1750973673721,1.24943,2403.8,2402.5,0.7706]
[1750973673920,0.5,2403.4,2402.5,0.7706]
[1750973674120,10.384,2403.8,2402.5,0.7706]
[1750973674422,0.5,2403.4,2402.5,0.2406]
[1750973674586,0.5,2404.0,2402.7,25.76425]
[1750973674788,5.4,2406.1,2403.1,10.0]
[1750973674789,0.5,2405.2,2403.1,10.0]
[1750973675092,1.248244,2406.4,2404.6,10.0]
[1750973675293,0.5,2406.5,2404.6,10.0]
[1750973675520,16.20698471,2407.4,2404.6,10.0]
[1750973675521,1.247715,2407.4,2405.8,12.396525]
[1750973675828,4.15387237,2407.4,2405.8,20.0]
[1750973676041,4.15387237,2407.4,2405.8,2.41569183]
[1750973676042,0.5,2406.9,2405.8,2.41569183]
[1750973676238,0.5,2406.9,2405.4,14.15728068]
[1750973676239,0.5,2408.0,2406.1,10.0]
[1750973676440,5.09382543,2409.1,2405.4,25.76425]
[1750973676441,0.5,2407.5,2405.4,25.76425]
[1750973676642,0.5,2407.5,2405.2,14.35936993]
[1750973676643,0.5,2407.9,2405.9,10.0]
[1750973676811,0.5,2407.9,2406.1,25.76425]
[1750973677016,0.5,2407.9,2406.2,10.0]
[1750973677343,0.5,2407.9,2406.5,10.0]
[1750973677556,0.5,2407.9,2406.5,0.7815]
[1750973677753,4.15348738,2407.7,2406.5,0.7815]
[1750973678043,4.15348738,2407.7,2406.6,2.926]
[1750973678244,0.5,2408.9,2407.0,6.220054]
[1750973678411,0.5,2407.9,2406.6,3.596702]
[1750973678612,4.15216435,2408.4,2406.8,10.0]
[1750973678810,4.65199135,2408.5,2407.0,10.0]
[1750973679145,4.65199135,2408.5,2406.6,4.70522421]
[1750973679146,0.5,2408.5,2407.4,11.68971]
[1750973679349,0.30003132,2408.8,2407.5,4.15366678]
[1750973679515,0.501,2408.9,2407.6,13.174418]
[1750973679844,0.501,2408.9,2406.5,0.7815]
[1750973679845,0.5,2408.3,2406.5,0.7815]
[1750973680056,4.6527595,2408.1,2406.8,10.0]
[1750973680349,0.5,2408.8,2407.2,12.11995]
[1750973680554,0.5,2408.8,2407.3,0.55]
[1750973680710,0.5,2408.8,2407.4,17.42]
[1750973680911,0.5,2408.8,2407.5,10.0]
[1750973681216,0.5,2408.8,2407.7,10.0]
[1750973681417,4.65146111,2408.8,2407.4,0.55]
[1750973681612,0.5,2408.8,2407.7,4.965852]
[1750973681810,0.5,2408.8,2407.6,10.0]
[1750973682012,0.5,2408.8,2407.8,10.0]
[1750973682256,0.5,2408.8,2407.9,10.0]
[1750973682432,0.5,2408.8,2408.0,2.673067]
[1750973682632,0.5,2408.8,2407.7,21.824485]
[1750973682834,0.5,2408.8,2407.7,3.711385]
[1750973683018,0.5,2408.8,2407.4,4.15382967]
[1750973683222,0.5,2408.8,2407.2,4.15419995]
[1750973683223,0.5,2408.8,2407.6,10.0]
[1750973683414,0.5,2408.8,2407.7,3.416]
[1750973683620,0.5,2408.8,2407.8,4.416]
[1750973683821,0.5,2408.8,2407.6,10.0]
[1750973684031,0.5,2408.8,2407.6,4.4161]
[1750973684241,0.5,2408.8,2407.8,10.0]
[1750973684455,0.5,2408.8,2407.8,17.022]
[1750973684659,0.5,2408.8,2407.8,4.1530297]
[1750973684844,0.001,2408.9,2407.9,35.76425]
[1750973685157,0.001,2408.9,2408.3,15.5265]
[1750973685353,0.001,2408.9,2408.2,10.8242]
[1750973685354,0.001,2408.9,2408.6,10.0]
[1750973685921,0.001,2408.9,2408.2,0.8242]
[1750973686127,0.001,2408.9,2408.6,10.0]
[1750973686324,0.001,2408.9,2408.7,2.967525]
[1750973686528,0.001,2408.9,2408.3,0.55]
[1750973686736,0.001,2408.9,2408.6,10.0]
[1750973686937,0.001,2408.9,2408.5,10.0]
[1750973687124,0.001,2408.9,2408.4,10.0]
[1750973687441,0.001,2408.9,2408.4,20.0]
[1750973687636,0.001,2408.9,2408.4,10.0]
[1750973687933,0.5,2408.7,2407.4,0.8313]
[1750973688265,4.65164864,2408.7,2407.4,0.8313]
[1750973688646,4.65164864,2408.7,2407.4,12.32983736]
[1750973688955,4.65164864,2408.7,2407.6,10.0]
[1750973689283,0.5,2408.7,2407.5,2.168]
[1750973689481,0.5,2408.7,2407.6,10.0]
[1750973689654,0.5,2408.7,2407.6,2.9261]
[1750973689847,4.15163158,2408.7,2407.6,3.4161]
[1750973690047,0.5,2408.6,2407.7,10.0]
[1750973690250,4.15151302,2408.8,2407.7,10.0]
[1750973690589,0.5,2408.6,2407.4,0.8313]
[1750973690745,0.5,2408.6,2407.6,10.0]
[1750973691246,0.5,2408.6,2407.5,10.0]
[1750973691646,0.5,2408.6,2407.6,4.562597]
[1750973691846,0.5,2408.6,2407.7,10.0]
[1750973692343,4.15228426,2408.9,2407.7,10.0]
[1750973692344,0.001,2408.9,2407.7,10.55]
[1750973692575,0.001,2408.9,2408.3,11.96852]
[1750973692778,0.001,2408.9,2408.4,3.89815]
[1750973692950,0.001,2408.9,2408.6,10.0]
[1750973693146,0.001,2408.9,2408.7,11.38792]
[1750973693353,0.001,2408.9,2408.8,10.0]
[1750973693602,0.001,2408.9,2408.7,4.70148701]
[1750973693771,0.001,2408.9,2408.8,10.55]
[1750973694079,0.001,2408.9,2408.8,13.7865447]
[1750973694250,0.001,2408.9,2408.8,4.7014447]
[1750973694576,0.001,2408.9,2408.8,9.2897447]
[1750973694888,0.001,2408.9,2408.8,10.0897447]
[1750973695084,0.001,2408.9,2408.8,9.1358447]
[1750973695290,0.001,2408.9,2408.8,7.4498447]
[1750973695586,0.001,2408.9,2408.4,10.0]
[1750973695784,0.001,2408.9,2408.4,24.298067]
[1750973695986,0.001,2408.9,2408.4,12.40068181]
[1750973696154,0.5,2409.6,2408.7,14.39235]
[1750973696358,0.5,2409.6,2408.6,14.15171286]
[1750973696558,0.5,2409.6,2408.7,10.0]
[1750973696790,0.5,2409.6,2408.8,10.0]
[1750973697163,0.5,2409.6,2409.0,10.0]
[1750973697493,0.5,2409.6,2408.9,3.735768]
[1750973697984,0.0556,2409.7,2408.8,10.0]
[1750973698187,0.5,2409.6,2408.7,10.0]
[1750973698382,0.5,2409.6,2408.9,10.0]
[1750973698585,0.5,2409.6,2409.0,3.39973]
[1750973698785,0.0556,2409.7,2408.8,13.88173]
[1750973698996,0.5,2409.5,2408.8,10.0]
[1750973699300,0.0556,2409.7,2408.9,3.412]
[1750973699597,0.5,2409.6,2408.8,3.8981]
[1750973699773,0.5,2409.6,2408.9,10.0]
[1750973699979,0.5,2409.6,2408.9,3.4121]
[1750973700168,0.5,2409.6,2408.7,10.0]
[1750973700478,0.5,2408.8,2407.5,2.279097]
[1750973700808,0.92962446,2408.7,2407.7,10.0]
[1750973700991,0.92962446,2408.6,2407.9,10.0]
[1750973701170,0.92959343,2408.5,2407.7,13.453763]
[1750973701496,4.6515524,2408.8,2407.7,3.453763]
[1750973701497,0.93229535,2408.4,2407.7,3.453763]
[1750973701699,0.5,2408.6,2407.6,0.58635402]
[1750973701700,0.93229535,2408.3,2407.6,0.58635402]
[1750973701867,0.5,2408.6,2407.7,3.453863]
[1750973701868,0.93229535,2408.2,2407.7,3.453863]
[1750973702064,0.5,2408.6,2407.7,3.453863]
[1750973702267,0.93306007,2408.5,2405.7,4.0181666]
[1750973702507,0.5,2407.7,2406.4,0.005]
[1750973702718,0.5,2407.3,2406.4,0.005]
[1750973702900,0.93306007,2407.2,2406.4,0.005]
[1750973703099,0.93306007,2407.1,2406.4,0.005]
[1750973703392,0.93306007,2407.0,2406.4,0.005]